Cogmind - Beta 13 @@@ ROGUE MODE // 2024.06.28 @ 22:26:37 Player: doughoff Result: Self-destructed Performance ------------- Evolutions (2) 1000 Regions Visited (6) 1200 Robots Destroyed (156) 780 Value Destroyed (4528) 4528 Prototype IDs (10) 200 Alien Tech Used (0) 0 Bonus (136) 136 TOTAL SCORE: 7844 Bonus ------- High Alert Combat Kills 553 Follower Combat Kills 136 Friendly Fire -553 Cogmind --------- Core Integrity 318/550 Matter 300/300 Energy 290/290 System Corruption 0% Temperature Cool (0) Movement Treading (236) Ox1 Location -8/Storage Parts ------- > --- POWER (1) -------- Improved Deuterium Engine > --- PROPULSION (4) --- Light Treads Light Treads Light Treads Advanced Treads > --- UTILITY (4) ------ Improved Heat Sink Huge Storage Unit Experimental Targeting Computer Hardened Medium Armor Plating > --- WEAPON (2) ------- Heavy Particle Gun Heavy Rocket Launcher > --- INVENTORY (25) --- Heavy Ion Engine Light Deuterium Engine Nuclear Core Improved Deuterium Engine Advanced Treads Compact Wheel Aerolev Unit Faulty Improved Flight Unit Improved Flight Unit Improved VTOL Module High-capacity Storage Unit Improved Signal Interpreter Light Armor Plating Hardened Medium Armor Plating Improved Light Armor Plating Hacking Suite Advanced Beam Rifle Advanced Beam Rifle Advanced Beam Cannon Minigun Minigun Improved Light Cannon Improved Light Cannon Heavy Rocket Launcher Heavy Rocket Launcher Peak State ------------ > --- POWER ------------ Improved Deuterium Engine > --- PROPULSION ------- Light Treads Light Treads Armored Treads Advanced Treads > --- UTILITY ---------- Improved Heat Sink Huge Storage Unit Experimental Targeting Computer Hardened Medium Armor Plating > --- WEAPON ----------- Heavy Particle Gun Advanced Beam Rifle > --- INVENTORY -------- Heavy Ion Engine Light Deuterium Engine Nuclear Core Improved Deuterium Engine Light Treads Compact Wheel Aerolev Unit Improved Flight Unit Improved Flight Unit High-capacity Storage Unit Improved Signal Interpreter Light Armor Plating Light Armor Plating Light Armor Plating Hardened Medium Armor Plating Advanced Beam Cannon Minigun Minigun Improved Light Cannon Improved Light Cannon Heavy Rocket Launcher Heavy Rocket Launcher Heavy Rocket Launcher [Rating: 39] Favorites ----------- Power Improved Deuterium Engine Engine Improved Deuterium Engine Power Core Nuclear Core Propulsion Light Treads Treads Light Treads Wheel Armored Wheel Hover Unit Aerolev Unit Flight Unit Improved Flight Unit Utility Huge Storage Unit Device Improved Heat Sink Storage Huge Storage Unit Processor Improved Targeting Computer Protection Light Armor Plating Weapon Improved Light Cannon Energy Gun Heavy Particle Gun Energy Cannon Advanced Beam Cannon Ballistic Gun Heavy Assault Rifle Ballistic Cannon Improved Light Cannon Launcher Grenade Launcher Build | -11 -10 -10 -9 -9 -8 -8 ------- Run | Yrd Mat Min Mat Min Mat Sto Slots Evolved 4 | . . . 2 . 2 . Power . | . . . . . . . Propulsion 2 | . . . 1 . 1 . Utility 2 | . . . 1 . 1 . Weapon . | . . . . . . . Parts Attached 103 | 6 11 5 30 3 27 21 Power 11 | 1 2 1 5 . 2 . Engine 9 | 1 1 1 5 . 1 . Core 2 | . 1 . . . 1 . Reactor . | . . . . . . . Propulsion 32 | 2 2 . 8 . 13 7 Treads 23 | 2 . . 4 . 11 6 Leg . | . . . . . . . Wheel 6 | . 2 . 4 . . . Hover 1 | . . . . . 1 . Flight 2 | . . . . . 1 1 Utility 19 | 1 4 . 5 . 3 6 Device 2 | . . . . . 2 . Storage 4 | 1 3 . . . . . Processor 3 | . . . 1 . . 2 Hackware . | . . . . . . . Protection 10 | . 1 . 4 . 1 4 Artifact . | . . . . . . . Weapon 41 | 2 3 4 12 3 9 8 Energy Gun 5 | . . . . . . 5 Energy Cannon 4 | . . . 2 . 1 1 Ballistic Gun 9 | 2 . 3 3 1 . . Ballistic Cannon 12 | . 2 . 4 1 4 1 Launcher 11 | . 1 1 3 1 4 1 Special Weapon . | . . . . . . . Impact Weapon . | . . . . . . . Slashing Weapon . | . . . . . . . Piercing Weapon . | . . . . . . . Special Melee Weapon . | . . . . . . . Unidentified Prototypes 8 | . . . 1 . 2 5 Parts Lost 24 | . 1 2 8 . 7 6 Power 4 | . 1 1 2 . . . Propulsion 7 | . . . 2 . 2 3 Utility 9 | . . 1 3 . 3 2 Weapon 4 | . . . 1 . 2 1 Highest Loss Streak 3 | . 1 1 2 . 2 3 To Critical Strikes . | . . . . . . . Average Slot Usage (%) 96 | . 93 96 94 100 96 97 Engine 9 | . 11 11 8 11 6 9 Treads 25 | . 14 . 5 33 35 35 Wheel 7 | . 13 28 26 . . . Device 4 | . . . . . 8 9 Storage 11 | . 19 14 11 11 9 9 Processor 7 | . . . 8 11 9 8 Protection 8 | . 3 13 10 11 6 8 Energy Gun 3 | . . . . . . 11 Energy Cannon 1 | . . . 4 . 1 . Ballistic Gun 4 | . 3 14 6 15 . . Ballistic Cannon 9 | . 23 4 8 . 14 3 Launcher 2 | . . 9 2 6 1 1 Naked Turns . | . . . . . . . Heaviest Build 111 | 12 111 97 100 98 107 109 Greatest Support 82 | 40 40 24 60 60 82 82 Greatest Overweight (x) 4 | 3 4 4 4 1 1 1 Average Overweight (x) 1 | . 1 3 1 1 1 1 Largest Inventory Capacity 25 | 8 25 25 25 25 25 25 Average Capacity 23 | 7 16 25 25 25 25 25 Most Carried 25 | 3 19 24 25 25 25 25 Average Carried 22 | 2 10 19 23 25 24 24 Final Capacity 25 | 8 25 25 25 25 25 25 Final Carried 25 | 3 19 24 25 25 25 25 Class Distribution -------------------- 59% | Mutant 24% | Scavenger-Mutant 16% | Commander-Mutant Dominant Class ---------------- Mutant | -10/Materials Mutant | -10/Mines Mutant | -9/Materials Scavenger-Mutant | -9/Mines Mutant | -8/Materials Commander-Mutant | -8/Storage Resources | -11 -10 -10 -9 -9 -8 -8 ----------- Run | Yrd Mat Min Mat Min Mat Sto Matter Collected 3319 | 210 195 82 1173 162 781 716 Remotely . | . . . . . . . Salvage Created 4898 | . 257 133 1639 214 1213 1442 Parts 239 | . 14 15 99 4 60 47 Haulers Intercepted 12 | . 1 . 4 . 3 4 Recyclers Shooed 5 | . . 1 1 . 3 . Parts Field Recycled . | . . . . . . . Retrieved Matter . | . . . . . . . Parts Self-Destructed . | . . . . . . . Prevented . | . . . . . . . Kills | -11 -10 -10 -9 -9 -8 -8 ------- Run | Yrd Mat Min Mat Min Mat Sto Combat Hostiles Destroyed 112 | . 6 7 39 7 33 20 Guns 19 | . . 2 8 1 . 8 Cannons 59 | . 5 . 22 . 21 11 AOE 33 | . 1 5 9 6 12 . Classes Destroyed 14 | . 4 2 5 . 3 . Worker 6 | . . . 4 . 1 1 Builder 4 | . . . . . 4 . Tunneler 2 | . . 1 1 . . . Hauler 12 | . 1 . 4 . 3 4 Recycler 9 | . 1 . 3 . 3 2 Operator 2 | . . . 1 . 1 . Watcher 6 | . 1 . 3 . 2 . Swarmer 19 | . . 5 9 . 3 2 Grunt 67 | . 6 2 20 7 21 11 Brawler 2 | . . . 1 . . 1 Duelist 2 | . . . . . 1 1 Protector 1 | . . . 1 . . . Sentry 22 | . . . 8 . 7 7 Hunter 2 | . . . . . 1 1 Best Kill Streak 10 | . 3 3 8 7 10 7 Combat Bots Only 7 | . 2 2 5 7 5 7 Max Kills in Single Turn 5 | . 1 2 3 2 5 3 Gunslinging 1 | . . . 1 . . . Exploded 3 | . 1 2 3 2 3 . Melee . | . . . . . . . Uniques/NPCs Destroyed . | . . . . . . . Combat | -11 -10 -10 -9 -9 -8 -8 -------- Run | Yrd Mat Min Mat Min Mat Sto Hostile Shots Fired 493 | . 27 36 156 22 153 99 Missed 132 | . 7 10 40 3 44 28 Damage Taken 5635 | . 443 330 1526 281 1705 1350 Core 658 | . 167 25 207 27 119 113 Absorbed by Shields . | . . . . . . . Regen/Repaired (Parts) 85 | . . . 85 . . . Core Remaining (%) 54 | 100 . 23 . 41 . . Volleys Fired 364 | . 22 26 110 16 99 91 Largest 2 | . 2 2 2 2 2 2 Hottest 116 | . 78 40 107 48 99 116 Shots Fired 631 | . 44 41 200 17 174 155 Gun 200 | . . 30 67 11 . 92 Cannon 387 | . 44 5 121 . 163 54 Launcher 44 | . . 6 12 6 11 9 Special . | . . . . . . . Kinetic 456 | . 44 35 163 11 151 52 Thermal 131 | . . . 25 . 12 94 Explosive 44 | . . 6 12 6 11 9 Electromagnetic . | . . . . . . . Robot Hit Streak 51 | . 10 13 9 6 17 51 Robot Miss Streak 4 | . 4 2 4 2 3 1 Penetration Max . | . . . . . . . Secondary Targets 4 | . . . 2 . . 2 Max Gunslinging Chain 1 | . . . 1 . . 1 Shots Hit Robots 419 | . 27 27 114 12 116 123 Core Hits 229 | . 12 15 69 18 72 43 Critical Kills . | . . . . . . . Critical Parts Destroyed . | . . . . . . . Critical Strikes 18 | . . 1 4 . 7 6 Burn 6 | . . . . . . 6 Blast 12 | . . 1 4 . 7 . Melee Attacks . | . . . . . . . Impact . | . . . . . . . Slashing . | . . . . . . . Piercing . | . . . . . . . Sneak Attacks . | . . . . . . . Combat Hostiles . | . . . . . . . Follow-up Attacks . | . . . . . . . Damage Inflicted 13084 | . 701 796 3286 960 4474 2867 Guns 2760 | . . 264 733 146 . 1617 Cannons 5649 | . 602 46 1529 . 2490 982 Explosions 4598 | . 99 468 977 814 1984 256 Melee . | . . . . . . . Ramming 77 | . . 18 47 . . 12 Kinetic 6132 | . 602 310 1881 146 2261 932 Thermal 2376 | . 99 . 381 . 229 1667 Explosive 4499 | . . 468 977 814 1984 256 Electromagnetic . | . . . . . . . Impact . | . . . . . . . Slashing . | . . . . . . . Piercing . | . . . . . . . Highest Corruption 1 | . . 1 . . . . Average Corruption 1 | . . 1 . . . . Corruption Purged . | . . . . . . . Corruption Blocked . | . . . . . . . Overload Shots . | . . . . . . . Overflow Damage 250 | . 31 6 39 35 139 . Projectiles 42 | . . 6 . . 36 . Explosions 191 | . 31 . 22 35 103 . Melee 17 | . . . 17 . . . Knockbacks 43 | . 7 2 9 . 23 2 Impact 1 | . . 1 . . . . Kinetic 42 | . 7 1 9 . 23 2 Secondary . | . . . . . . . Self-Inflicted Damage 386 | . 159 9 68 49 60 41 Shots 11 | . 2 . 2 2 4 1 Rammed 3 | . . 2 1 . . . Targets Rammed 4 | . . 2 1 . . 1 Kicked . | . . . . . . . Crushed 1 | . . . . . . 1 Highest Temperature 276 | . 276 16 210 38 162 243 Average Temperature 50 | . 81 5 44 17 39 63 Received Heat Transfer 1998 | . 138 102 498 153 819 288 Effects 1 | . . . . . . 1 Interference 1 | . . . . . . 1 Siege Activations . | . . . . . . . Robots Corrupted . | . . . . . . . Combat Hostiles . | . . . . . . . Parts Fried 3 | . . . 3 . . . Impact Corruptions 1 | . . . 1 . . . Robots Melted 2 | . . . . . . 2 Combat Hostiles 1 | . . . . . . 1 Parts Melted 7 | . . . 1 . . 6 Heat Transferred 4379 | . 50 . 629 . 370 3330 Parts Sabotaged . | . . . . . . . Parts Stolen . | . . . . . . . Parts Stripped . | . . . . . . . Power Chain Reactions . | . . . . . . . Alert | -11 -10 -10 -9 -9 -8 -8 ------- Run | Yrd Mat Min Mat Min Mat Sto Peak Influence 1015 | . 255 336 1015 357 630 676 Initial 357 | . . 34 126 357 33 265 Average 321 | . 88 225 670 214 210 341 Maximum Alert Level 3 | . 1 1 3 1 2 2 Low Security (%) 41 | 100 92 40 7 66 51 21 Level 1 31 | . 7 59 15 33 40 40 Level 2 18 | . . . 29 . 8 38 Level 3 9 | . . . 47 . . . Level 4 . | . . . . . . . Level 5 . | . . . . . . . High Security . | . . . . . . . Max Security . | . . . . . . . Squads Dispatched 16 | . 1 . 7 . 5 3 Investigation 4 | . 1 . 1 . 2 . Extermination . | . . . . . . . Reinforcement 9 | . . . 5 . 3 1 Assault 3 | . . . 1 . . 2 Garrison . | . . . . . . . Intercept . | . . . . . . . Searches Triggered . | . . . . . . . Construction Impeded 1 | . . . . . 1 . Haulers Reinforced . | . . . . . . . Active Scanning Responses . | . . . . . . . Cargo Convoy Interrupts . | . . . . . . . Stealth | -11 -10 -10 -9 -9 -8 -8 --------- Run | Yrd Mat Min Mat Min Mat Sto Distress Signals 14 | . 1 1 3 3 6 . Communications Jammed . | . . . . . . . Distress Signals . | . . . . . . . Times Spotted 183 | . 13 8 64 7 50 41 Peak Tracking Total 10 | . 2 2 6 4 5 10 Tactical Retreats 10 | . 1 3 2 . 3 1 Traps | -11 -10 -10 -9 -9 -8 -8 ------- Run | Yrd Mat Min Mat Min Mat Sto Traps Triggered 5 | . 2 1 1 . 1 . Indirectly . | . . . . . . . Trap Hack Attempts . | . . . . . . . Triggered . | . . . . . . . Disarmed . | . . . . . . . Reprogrammed . | . . . . . . . Reused . | . . . . . . . Traps Extracted . | . . . . . . . Installed . | . . . . . . . Triggered 1 | . . 1 . . . . Machines | -11 -10 -10 -9 -9 -8 -8 ---------- Run | Yrd Mat Min Mat Min Mat Sto Machines Disabled 13 | . 4 1 1 . 2 5 Max in Single Turn 3 | . 3 1 1 . 1 1 Garrison Access 1 | . . . . . . 1 Machines Repaired . | . . . . . . . Machines Dismantled . | . . . . . . . Machines Sabotaged . | . . . . . . . Overloaded Fab Kills . | . . . . . . . Hacking | -11 -10 -10 -9 -9 -8 -8 --------- Run | Yrd Mat Min Mat Min Mat Sto Machines Accessed 24 | . 4 1 6 . 4 9 Terminals 20 | . 3 . 5 . 4 8 Fabricators . | . . . . . . . Repair Stations 1 | . . . 1 . . . Recycling Units 1 | . 1 . . . . . Scanalyzers . | . . . . . . . Garrison Access 1 | . . . . . . 1 Total Hacks 54 | . 14 1 14 . 10 15 Successful 27 | . 7 1 5 . 3 11 Failed 26 | . 7 . 8 . 7 4 Catastrophic 10 | . 1 . 4 . 2 3 Database Lockouts 1 | . . . 1 . . . Manual 41 | . 12 . 11 . 11 7 Terminals 48 | . 13 . 11 . 10 14 Fabricators . | . . . . . . . Repair Stations 3 | . . . 3 . . . Recycling Units 1 | . 1 . . . . . Scanalyzers . | . . . . . . . Garrison Access 1 | . . . . . . 1 Terminal Hacks 20 | . 6 1 3 . 1 9 Robot Analysis 7 | . 5 . 2 . . . Prototype ID Bank 1 | . 1 . . . . . Open Door 4 | . . 1 . . . 3 Branch Access Points 3 | . . . 1 . 1 1 Unreport Threat 3 | . . . . . . 3 Hauler Manifests 1 | . . . . . . 1 Registered Components 1 | . . . . . . 1 Fabricator Hacks . | . . . . . . . Repair Station Hacks 2 | . . . 2 . . . Scan Component 1 | . . . 1 . . . Repair 1 | . . . 1 . . . Recycling Unit Hacks 1 | . 1 . . . . . Retrieve Components 1 | . 1 . . . . . Scanalyzer . | . . . . . . . Garrison Access Hacks 1 | . . . . . . 1 Seal Access 1 | . . . . . . 1 Unauthorized Hacks 3 | . . . . . 2 1 Terminals 3 | . . . . . 2 1 Botnet 3 | . . . . . 2 1 Fabricators . | . . . . . . . Repair Stations . | . . . . . . . Recycling Units . | . . . . . . . Scanalyzers . | . . . . . . . Garrison Access . | . . . . . . . Data Cores Recovered . | . . . . . . . Used . | . . . . . . . Hacking Detections 13 | . 3 . 4 . 4 2 Full Trace Events 2 | . . . 1 . 1 . Feedback Events . | . . . . . . . Feedback Blocked . | . . . . . . . Robot Schematics Acquired . | . . . . . . . Robots Built . | . . . . . . . Authchips . | . . . . . . . Time . | . . . . . . . Total Robot Build Rating . | . . . . . . . Part Schematics Acquired . | . . . . . . . Parts Built . | . . . . . . . Authchips . | . . . . . . . Time . | . . . . . . . Total Part Build Rating . | . . . . . . . Parts Repaired 1 | . . . 1 . . . Time 32 | . . . 32 . . . Parts Recycled . | . . . . . . . Recycled Matter . | . . . . . . . Retrieved Matter . | . . . . . . . Retrieved Components 1 | . 1 . . . . . Parts Scanalyzed . | . . . . . . . Part Schematics Acquired . | . . . . . . . Parts Damaged . | . . . . . . . Bothacking | -11 -10 -10 -9 -9 -8 -8 ------------ Run | Yrd Mat Min Mat Min Mat Sto Used RIF Installer . | . . . . . . . Robots Hacked . | . . . . . . . Non-combat . | . . . . . . . Combat . | . . . . . . . Robot Hacks Applied . | . . . . . . . Relay Couplers Released . | . . . . . . . Fabnet Peak Effective % . | . . . . . . . Robots Rewired . | . . . . . . . Allies Hacked . | . . . . . . . Hacks Repelled . | . . . . . . . Allies | -11 -10 -10 -9 -9 -8 -8 -------- Run | Yrd Mat Min Mat Min Mat Sto Total Allies 12 | . . . . . . 12 Largest Group 11 | . . . . . . 11 Highest-Rated Group 201 | . . . . . . 201 Highest-Rated Ally 31 | . . . . . . 31 Total Orders . | . . . . . . . Ally Attacks 74 | . . . . . . 74 Total Damage 1146 | . . . . . . 1146 Kills 9 | . . . . . . 9 Allies Corrupted . | . . . . . . . Allies Melted . | . . . . . . . Intel | -11 -10 -10 -9 -9 -8 -8 ------- Run | Yrd Mat Min Mat Min Mat Sto Robot Analysis Total 7 | . 5 . 2 . . . Derelict Logs Recovered 2 | . . 1 . 1 . . Drone Launches . | . . . . . . . Drone Recoveries . | . . . . . . . Exploration | -11 -10 -10 -9 -9 -8 -8 ------------- Run | Yrd Mat Min Mat Min Mat Sto Turns Passed 8753 | 58 1021 336 1673 1200 1938 2527 Spaces Moved 3552 | 30 593 153 926 323 635 892 Core 4 | 4 . . . . . . Treads 2273 | 26 278 . 119 323 635 892 Legs . | . . . . . . . Wheels 1275 | . 315 153 807 . . . Hover . | . . . . . . . Flight . | . . . . . . . Fastest Speed 50 | 50 105 135 120 240 240 235 Average Speed 193 | 153 151 140 136 240 243 237 Slowest Speed 245 | 200 240 150 240 240 245 241 Overloaded Moves . | . . . . . . . Propulsion Burnouts . | . . . . . . . Robots Hopped 3 | . . . . . . 3 Cave-ins Triggered . | . . . . . . . Exploration Rate (%) 63 | 4 85 25 91 86 59 93 Regions Visited 6 Branch Regions 3 Pre-discovered Areas 1 | . . . . 1 . . Known Exits Taken 3 | . . 1 1 . 1 . Unknown Exits Taken 3 | 1 1 . . 1 . . Scrap Searched 2 | . . . . 2 . . Spaces Dug 47 | . . 9 10 12 16 . Terrain Destroyed 388 | . 54 68 67 41 122 36 Melee . | . . . . . . . Projectile 15 | . 1 . 4 . 8 2 AOE 373 | . 53 68 63 41 114 34 Terrain Rammed . | . . . . . . . Walls Destroyed . | . . . . . . . Machines Disabled . | . . . . . . . Actions | -11 -10 -10 -9 -9 -8 -8 --------- Run | Yrd Mat Min Mat Min Mat Sto Total 4839 | 39 670 233 1157 732 860 1148 Wait 674 | 1 21 44 31 388 66 123 Move 3541 | 29 592 152 925 322 634 887 Hop 2 | . . . . . . 2 Pick Up 85 | 3 18 4 32 1 16 11 Fast Attach 23 | 6 4 1 5 . 2 5 Attach 26 | . . . 10 . 8 8 Detach 1 | . . . . . . 1 Swap 54 | . 7 4 15 3 17 8 Drop 64 | . 6 . 28 1 18 11 Fire 364 | . 22 26 110 16 99 91 Melee . | . . . . . . . Ram 3 | . . 2 1 . . . Kick . | . . . . . . . Crush 1 | . . . . . . 1 Escape Stasis . | . . . . . . . Rewire 1 | . . . . 1 . . Trap . | . . . . . . . Miscellaneous . | . . . . . . . Route ------- -11/Scrapyard -10/Materials (discovered 3 exits: *Mat x2 / *Min) -10/Mines (discovered 2 exits: *Mat x2) -9/Materials (discovered 5 exits: *Mat x3 / *Min x2) -9/Mines (discovered 2 exits: *Mat x2) -8/Materials (discovered 4 exits: [*Fac x3] / *Sto) -8/Storage (discovered 2 exits: [*Fac] / Rec) History --------- Turn | Location | Event 20 | -11/Scrapyard | Discovered new exit (range 16) 59 | -11/Scrapyard | Entered Materials 246 | -10/Materials | Core integrity fell below 50% 310 | -10/Materials | Build established: Mutant 452 | -10/Materials | Discovered new exit (range 12) 739 | -10/Materials | Discovered new exit (range 16) 938 | -10/Materials | Discovered new exit (range 11) 1080 | -10/Materials | Entered Mines 1090 | -10/Mines | Met a Derelict bent on vengeance 1337 | -10/Mines | Identified exit to Materials 1375 | -10/Mines | Discovered exit to Materials (range 9) 1387 | -10/Mines | Assembled infested the area 1388 | -10/Mines | Met a Derelict who couldn't figure out how to use a Trap Extractor 1416 | -10/Mines | Entered Materials 1416 | -9/Materials | Evolved 2 slots: Propulsion x1, Utility x1 1580 | -9/Materials | Discovered new exit (range 16) 1656 | -9/Materials | Repaired Arm. Wheel? 2117 | -9/Materials | Central database locked down 2216 | -9/Materials | First assault squad dispatched 2282 | -9/Materials | Discovered new exit (range 16) 2568 | -9/Materials | Discovered new exit (range 16) 2600 | -9/Materials | Core integrity fell below 50% 2755 | -9/Materials | Discovered new exit (range 16) 3052 | -9/Materials | Identified exit to Mines 3079 | -9/Materials | Build established: Scavenger-Mutant 3089 | -9/Materials | Entered Mines 3116 | -9/Mines | Received a Rocket Launcher from a helpful Derelict 3200 | -9/Mines | Learned location of Zion (-6) 3223 | -9/Mines | Excavation squad dispatched 3223 | -9/Mines | A large section of the Mines collapsed 3473 | -9/Mines | Excavation squad dispatched 3723 | -9/Mines | Excavation squad dispatched 3973 | -9/Mines | Excavation squad dispatched 4043 | -9/Mines | Destroyed 7 combat bots 4070 | -9/Mines | Discovered new exit (range 14) 4272 | -9/Mines | Discovered new exit (range 6) 4289 | -9/Mines | Entered Materials 4289 | -8/Materials | Evolved 2 slots: Propulsion x1, Utility x1 4854 | -8/Materials | Discovered new exit (range 16) 5140 | -8/Materials | Build established: Mutant 5487 | -8/Materials | Discovered new exit (range 15) 5861 | -8/Materials | Discovered new exit (range 9) 5861 | -8/Materials | Discovered new exit (range 13) 6153 | -8/Materials | Identified exit to Storage 6227 | -8/Materials | Entered Storage 6566 | -8/Storage | Lost 3 parts (1n1u1w) 6690 | -8/Storage | Identified exit to Recycling 6960 | -8/Storage | Found Prototype Processor 6963 | -8/Storage | Identified Exp. Targeting Computer 6985 | -8/Storage | Met a pair of Derelict thieves 7122 | -8/Storage | Destroyed 7 combat bots 7318 | -8/Storage | Discovered new exit (range 15) 7351 | -8/Storage | Assisted by bots powering up and referring to "LRC-V3" 7638 | -8/Storage | Build established: Commander-Mutant 8512 | -8/Storage | Murdered 3 allies 8754 | -8/Storage | Self-destructed Last Messages --------------- 08543_ U-05 Engineer lays Concrete. 08546_ U-05 Engineer builds a Wall. 08546_ U-05 Engineer lays Concrete. 08552_ U-05 Engineer builds a Wall. 08553_ U-05 Engineer builds a Door. 08553_ U-05 Engineer lays Concrete. 08556_ U-05 Engineer builds a Wall. 08561_ U-05 Engineer lays Concrete. 08563_ U-05 Engineer builds a Wall. 08563_ U-05 Engineer lays Concrete. 08567_ U-05 Engineer builds a Wall. 08571_ U-05 Engineer lays Concrete. 08572_ U-05 Engineer builds a Wall. 08662_ K-01 Serf cleans the Component Storage. 08667_ Acquired 45 matter. 08672_ Acquired 32 matter. 08709_ Connecting with Door Terminal... 08752_ Crushed R-06 Scavenger. 08752_ R-06 Scavenger destroyed. 08754_ K-01 Serf collects debris. Map ----- +----------------------------------------------------+ | | | | | | | | | | | | | | | | | | | | | | | | | | | ??????????????????????????#?#########????????????? | | ?????????????????????????? # #????????????? | | ?????????????????????""""" # ""#????????????? | | ?????????????????????"!!*" # """ ""#????????????? | | ?????????????????????"""" # """ T"#????????????? | | ????????????????????""""" # """ ""#????????????? | | ?????????????###??#??!![" # """ ""#????????????? | | ?????????????# #??# """ " # """ ##???????????? | | ???########### #??# + ##???????????? | | ???# [ # ##T #??# #% % ####?????????? | | ???# " ###+#########+###+#####+## #"?????????? | | ???# +% g g %% % "?>???????? | | ???# " #% % gg [@ o "?????????? | | ???# ]] #T##%####+######k#########+####"?????????? | | ####] ] ####%#?# # #????????? | | ""#######??# #?# """ # """ #????????? | | Y"####?????# #?# """ # """ # #????????? | | #######%### """ # """ #####????????? | | " + % + """ ""T"" # #????????????? | | " ########### """ """"" # """ #????????????? | | " #?????????# # """ #????????????? | | #?????????###T####+#### """ #????????????? | | ##################### % ## #????????????? | | ###########??#####?????? | | % % #????????????#! !#?????? | | % % #????????????#! !#?????? | | ######+##+######+####%[ #????????????#! !#?????? | | # ## ## ##????????????#! !#?????? | | # T ## """ ## #?????????????# ##????? | | # ## "R" ## #?????????????# T#????? | | # ## " " = ## #?????????????# ##????? | | # ! ## ## #?????????????##+#####??? | | # # ## ############### #??? | | # ## [ ## # # #??? | | # ## ## # [ # #??? | | ######## #### ! ## # # ##+#### | | ???????###??# ! / # + # | +----------------------------------------------------+ Best States ------------- Heat Dissipation 45 Energy Generation 16 Energy Capacity 290 Matter Stores 300 Matter Capacity 300 Sight Range 16 Terrain Scan Density 10 Armor Coverage 225 Evasion (%) 40 Targeting Accuracy 12 Recoil Reduction 4 Item Schematics ----------------- None Robot Schematics ------------------ None Fabricated ------------ Nothing Alien Tech Used ----------------- None Achievements -------------- Fist Fight Challenges ------------ None Game ------ Seed LegMicrowarpCleaver Manual? 0 Play Time 00:55:35 Cumulative 71.8 hours Start 2024.06.28 @ 21:30:45 End 2024.06.28 @ 22:26:37 Sessions 1 Manual Loads 0 Difficulty Rogue Special Mode None Game No. 63 Rogue 56 Adventurer 7 Explorer 0 Win Type - Total 2 Types 2/0/0/0/0/0/0/0/0 Lore% 25 Gallery% 42 Achievement% 40 Wizard Run 0 Options --------- Layout 0 ASCII 0 Keyboard 0 Movement Numpad Keybinds 0 Fullscreen 2 Font 24/Smallcaps Map View 113x50 Zoom Use 0% Tactical HUD 1 Map Filters NONE Filters NONE Steam 1 RUN: 5b02c2af-2868-4a1c-a375-6f48321ba8b4